[Event "FIDE Online Olympiad Top Division 2020"]
[Site "Online"]
[Date "2020.08.24"]
[Round "?"]
[White "Abdusattorov, Nodirbek"]
[Black "Svane, Rasmus"]
[Result "1-0"]
[ECO "B13"]
[WhiteElo "2610"]
[BlackElo "2515"]
[Annotator "ChessBase"]
[PlyCount "105"]
[EventDate "2020.08.21"]
[TimeControl "900+5"]

1. e4 {[%emt 0:00:03]} c6 {[%emt 0:00:02]} 2. d4 {[%emt 0:00:03]} d5 {[%emt 0:00:01]} 3. exd5 {[%emt 0:00:00]} cxd5 {[%emt 0:00:01]} 4. Bd3 {[%emt 0:00:02]} Nc6 {[%emt 0:00:00]} 5. c3 {[%emt 0:00:01]} Nf6 {[%emt 0:00:01]} 6. Bf4 {[%emt 0:00:02]} Bg4 {[%emt 0:00:01]} 7. Qb3 {[%emt 0:00:04]} Qd7 {[%emt 0:00:02]} 8. Nd2 {[%emt 0:00:03]} e6 {[%emt 0:00:01]} 9. Ngf3 {[%emt 0:00:00]} Bd6 {[%emt 0:00:01]} 10. Bxd6 {[%emt 0:00:02]} Qxd6 {[%emt 0:00:00]} 11. O-O {[%emt 0:00:02]} O-O {[%emt 0:00:02]} 12. Rae1 {[%emt 0:00:03]} Qc7 {[%emt 0:00:01]} 13. Ne5 {[%emt 0:01:11]} Bh5 {[%emt 0:00:20]} 14. f4 {[%emt 0:00:11]} Bg6 {[%emt 0:02:49]} 15. Bxg6 {[%emt 0:00:04]} hxg6 {[%emt 0:00:00]} 16. Re3 {[%emt 0:00:01]} Rfc8 {[%emt 0:02:27]} 17. Qd1 {[%emt 0:00:12]} b5 {[%emt 0:00:14]} 18. Qe1 {[%emt 0:00:13]} b4 {[%emt 0:02:38]} 19. Qh4 {[%emt 0:01:24]} Qd8 {[%emt 0:03:35]} 20. Nxc6 {[%emt 0:00:27]} Rxc6 {[%emt 0:00:03]} 21. Nf3 {[%emt 0:00:00]} bxc3 {[%emt 0:00:15]} 22. bxc3 {[%emt 0:02:40]} Rac8 {[%emt 0:00:16]} 23. Rc1 {[%emt 0:00:02]} Qa5 {[%emt 0:01:06]} 24. Ng5 {[%emt 0:00:01]} Qa3 {[%emt 0:01:27]} 25. Rc2 {[%emt 0:02:37]} Nh5 {[%emt 0:01:09]} 26. g4 {[%emt 0:00:33]} Nxf4 {[%emt 0:00:25]} 27. Qh7+ {[%emt 0:00:16]} Kf8 {[%emt 0:00:01]} 28. Qh8+ {[%emt 0:00:00]} Ke7 {[%emt 0:00:00]} 29. Qxg7 {[%emt 0:00:01]} Rf8 {[%emt 0:00:18]} 30. Nh7 {[%emt 0:00:03]} Ke8 {[%emt 0:00:01]} 31. Qe5 {[%emt 0:00:23]} Qd6 {[%emt 0:00:08]} 32. Qxd6 {[%emt 0:00:04]} Rxd6 {[%emt 0:00:00]} 33. Rf3 {[%emt 0:00:31]} g5 {[%emt 0:00:06]} 34. Rb2 {[%emt 0:00:01]} Rb6 {[%emt 0:00:11]} 35. Rxb6 {[%emt 0:00:03]} axb6 {[%emt 0:00:00]} 36. Nxf8 {[%emt 0:00:02]} Kxf8 {[%emt 0:00:00]} 37. Kf2 {[%emt 0:00:10]} Ng6 {[%emt 0:00:06]} 38. Ke3 {[%emt 0:00:02]} Ke7 {[%emt 0:00:02]} 39. Rf2 {[%emt 0:00:01]} Nf8 {[%emt 0:00:04]} 40. Kd3 {[%emt 0:00:02]} Nd7 {[%emt 0:00:04]} 41. c4 {[%emt 0:00:00]} dxc4+ {[%emt 0:00:02]} 42. Kxc4 {[%emt 0:00:01]} Nf6 {[%emt 0:00:14]} 43. Kb5 {[%emt 0:00:22]} Nd5 {[%emt 0:00:07]} 44. Kc6 {[%emt 0:00:02]} f6 {[%emt 0:00:12]} 45. a3 {[%emt 0:00:01]} Kf7 {[%emt 0:00:05]} 46. Rb2 {[%emt 0:00:04]} Ke7 {[%emt 0:00:02]} 47. a4 {[%emt 0:00:06]} Nc3 {[%emt 0:00:06]} 48. Rxb6 {[%emt 0:00:06]} Nxa4 {[%emt 0:00:03]} 49. Rb7+ {[%emt 0:00:01]} Kf8 {[%emt 0:00:03]} 50. Rb3 {[%emt 0:00:00]} Ke7 {[%emt 0:00:03]} 51. Kb5 {[%emt 0:00:01]} Kd6 {[%emt 0:00:04]} 52. Kxa4 {[%emt 0:00:02]} Kd5 {[%emt 0:00:03]} 53. Rf3 {[%emt 0:00:01]} 1-0

[Event "FIDE Online Olympiad Top Division 2020"]
[Site "Online"]
[Date "2020.08.24"]
[Round "?"]
[White "Bluebaum, Matthias"]
[Black "Sibanda, Kudakwashe"]
[Result "1-0"]
[ECO "E20"]
[WhiteElo "2562"]
[BlackElo "1196"]
[Annotator "ChessBase"]
[PlyCount "57"]
[EventDate "2020.08.21"]
[TimeControl "900+5"]

1. d4 {[%emt 0:00:01]} Nf6 {[%emt 0:00:07]} 2. c4 {[%emt 0:00:01]} e6 {[%emt 0:00:03]} 3. Nc3 {[%emt 0:00:01]} Bb4 {[%emt 0:00:04]} 4. e3 {[%emt 0:00:01]} d5 {[%emt 0:00:07]} 5. Bd2 {[%emt 0:00:01]} Kf8 {[%emt 0:00:19]} 6. Nf3 {[%emt 0:00:05]} b6 {[%emt 0:00:17]} 7. cxd5 {[%emt 0:00:04]} exd5 {[%emt 0:00:05]} 8. Rc1 {[%emt 0:00:04]} Bb7 {[%emt 0:00:50]} 9. Bd3 {[%emt 0:00:02]} g6 {[%emt 0:00:11]} 10. O-O {[%emt 0:00:10]} Nbd7 {[%emt 0:00:11]} 11. Ne5 {[%emt 0:00:23]} Bd6 {[%emt 0:00:47]} 12. f4 {[%emt 0:00:05]} a6 {[%emt 0:00:22]} 13. Qf3 {[%emt 0:00:10]} Kg7 {[%emt 0:00:27]} 14. Be1 {[%emt 0:00:05]} Re8 {[%emt 0:03:34]} 15. Bh4 {[%emt 0:00:03]} Be7 {[%emt 0:00:08]} 16. f5 {[%emt 0:00:18]} Ne4 {[%emt 0:01:08]} 17. Nxf7 {[%emt 0:00:56]} Qc8 {[%emt 0:01:22]} 18. Bxe7 {[%emt 0:00:44]} Rxe7 {[%emt 0:00:19]} 19. fxg6 {[%emt 0:00:08]} hxg6 {[%emt 0:00:20]} 20. Bxe4 {[%emt 0:00:05]} dxe4 {[%emt 0:00:10]} 21. Qf4 {[%emt 0:00:01]} Kg8 {[%emt 0:00:42]} 22. Nh6+ {[%emt 0:00:30]} Kg7 {[%emt 0:00:21]} 23. Qg5 {[%emt 0:00:06]} Re6 {[%emt 0:00:34]} 24. Rf7+ {[%emt 0:00:03]} Kh8 {[%emt 0:00:07]} 25. Nf5 {[%emt 0:00:15]} Kg8 {[%emt 0:00:21]} 26. Rg7+ {[%emt 0:00:02]} Kf8 {[%emt 0:00:07]} 27. Qh6 {[%emt 0:00:01]} Ke8 {[%emt 0:00:21]} 28. Rg8+ {[%emt 0:00:02]} Nf8 {[%emt 0:00:04]} 29. Rxf8+ {[%emt 0:00:01]} 1-0

[Event "FIDE Online Olympiad Top Division 2020"]
[Site "Online"]
[Date "2020.08.22"]
[Round "?"]
[White "rasmussvane"]
[Black "Virgo15"]
[Result "1-0"]
[ECO "A05"]
[WhiteElo "2510"]
[BlackElo "2456"]
[Annotator "NA"]
[PlyCount "97"]
[EventDate "2020.08.21"]
[SourceTitle "playchess.com"]
[Source "ChessBase"]
[SourceQuality "1"]
[TimeControl "900+5"]

1. Nf3 {[%emt 0:00:04]} Nf6 {[%emt 0:00:05]} 2. g3 {[%emt 0:00:04]} e6 {[%emt 0:00:01]} 3. Bg2 {[%emt 0:00:01]} d5 {[%emt 0:00:01]} 4. O-O {[%emt 0:00:01]} b5 {[%emt 0:00:06]} 5. d3 {[%emt 0:00:02]} Bb7 {[%emt 0:00:01]} 6. c4 {[%emt 0:00:08]} dxc4 {[%emt 0:00:21]} 7. dxc4 {[%emt 0:00:00]} Qxd1 {[%emt 0:00:18]} 8. Rxd1 {[%emt 0:00:00]} b4 {[%emt 0:01:26]} 9. Bf4 {[%emt 0:01:17]} Na6 {[%emt 0:02:11]} 10. Nbd2 {[%emt 0:02:03]} Bd6 {[%emt 0:02:54]} 11. Nb3 {[%emt 0:00:02]} Bxf4 {[%emt 0:01:57]} 12. gxf4 {[%emt 0:00:00]} O-O {[%emt 0:01:16]} 13. Ne5 {[%emt 0:01:25]} Bxg2 {[%emt 0:00:23]} 14. Kxg2 {[%emt 0:00:00]} Rfd8 {[%emt 0:04:05]} 15. Rxd8+ {[%emt 0:00:35]} Rxd8 {[%emt 0:00:02]} 16. Nc6 {[%emt 0:00:01]} Ra8 {[%emt 0:00:34]} 17. a3 {[%emt 0:00:04]} bxa3 {[%emt 0:00:01]} 18. Rxa3 {[%emt 0:00:00]} Nb8 {[%emt 0:00:02]} 19. Nxa7 {[%emt 0:03:14]} Kf8 {[%emt 0:00:03]} 20. Kf3 {[%emt 0:00:28]} Ke8 {[%emt 0:00:03]} 21. Nd4 {[%emt 0:00:33]} Nbd7 {[%emt 0:00:24]} 22. Ndc6 {[%emt 0:00:26]} Nb6 {[%emt 0:00:03]} 23. b3 {[%emt 0:00:05]} Nfd7 {[%emt 0:00:13]} 24. Ra5 {[%emt 0:00:29]} Nb8 {[%emt 0:00:16]} 25. Nxb8 {[%emt 0:00:41]} Rxb8 {[%emt 0:00:01]} 26. Nc6 {[%emt 0:00:01]} Rb7 {[%emt 0:00:11]} 27. Ke4 {[%emt 0:00:19]} f6 {[%emt 0:00:01]} 28. Kd4 {[%emt 0:00:39]} Kd7 {[%emt 0:00:07]} 29. Nb4 {[%emt 0:00:42]} Nc8 {[%emt 0:00:05]} 30. Nd3 {[%emt 0:00:01]} Ke7 {[%emt 0:00:11]} 31. b4 {[%emt 0:00:04]} Nd6 {[%emt 0:00:01]} 32. b5 {[%emt 0:00:07]} Nf5+ {[%emt 0:00:09]} 33. Kc5 {[%emt 0:00:03]} Rb6 {[%emt 0:00:01]} 34. Ra7 {[%emt 0:00:15]} Kd8 {[%emt 0:00:01]} 35. Kb4 {[%emt 0:00:18]} Rd6 {[%emt 0:00:02]} 36. Nc5 {[%emt 0:00:03]} Rd2 {[%emt 0:00:14]} 37. Nxe6+ {[%emt 0:00:19]} Kd7 {[%emt 0:00:01]} 38. e4 {[%emt 0:00:28]} Nd6 {[%emt 0:00:05]} 39. Nc5+ {[%emt 0:00:20]} Kd8 {[%emt 0:00:05]} 40. e5 {[%emt 0:00:03]} fxe5 {[%emt 0:00:08]} 41. fxe5 {[%emt 0:00:00]} Nf5 {[%emt 0:00:03]} 42. Ne6+ {[%emt 0:00:46]} Kd7 {[%emt 0:00:03]} 43. Nxc7 {[%emt 0:00:50]} Rxf2 {[%emt 0:00:02]} 44. Kc5 {[%emt 0:00:09]} Re2 {[%emt 0:00:06]} 45. e6+ {[%emt 0:00:07]} Ke7 {[%emt 0:00:01]} 46. b6 {[%emt 0:00:03]} Re5+ {[%emt 0:00:03]} 47. Nd5+ {[%emt 0:00:07]} Kxe6 {[%emt 0:00:11]} 48. b7 {[%emt 0:00:03]} Nd6 {[%emt 0:00:12]} 49. b8=Q {[%emt 0:00:08]} 1-0

[Event "FIDE Online Olympiad Top Division 2020"]
[Site "Online"]
[Date "2020.08.21"]
[Round "?"]
[White "Tanzja"]
[Black "Munguntuul_B"]
[Result "1-0"]
[ECO "B22"]
[WhiteElo "2492"]
[BlackElo "2420"]
[Annotator "ChessBase"]
[PlyCount "85"]
[EventDate "2020.08.21"]
[SourceTitle "playchess.com"]
[Source "ChessBase"]
[SourceQuality "1"]
[TimeControl "900+5"]

1. e4 {[%emt 0:00:05]} c5 {[%emt 0:00:04]} 2. Nf3 {[%emt 0:00:03]} e6 {[%emt 0:00:02]} 3. c3 {[%emt 0:00:02]} Nf6 {[%emt 0:00:05]} 4. e5 {[%emt 0:00:02]} Nd5 {[%emt 0:00:01]} 5. Bc4 {[%emt 0:00:01]} d6 {[%emt 0:00:05]} 6. d4 {[%emt 0:00:05]} cxd4 {[%emt 0:00:05]} 7. cxd4 {[%emt 0:00:01]} Nc6 {[%emt 0:00:01]} 8. O-O {[%emt 0:00:02]} Be7 {[%emt 0:00:09]} 9. exd6 {[%emt 0:00:03]} Qxd6 {[%emt 0:00:03]} 10. Nc3 {[%emt 0:00:06]} Nxc3 {[%emt 0:00:05]} 11. bxc3 {[%emt 0:00:03]} O-O {[%emt 0:00:19]} 12. Re1 {[%emt 0:00:22]} b6 {[%emt 0:01:36]} 13. Ng5 {[%emt 0:00:52]} h6 {[%emt 0:01:48]} 14. Ne4 {[%emt 0:00:09]} Qc7 {[%emt 0:00:08]} 15. Bd3 {[%emt 0:00:28]} f5 {[%emt 0:02:04]} 16. Ng3 {[%emt 0:01:02]} Na5 {[%emt 0:00:01]} 17. Qe2 {[%emt 0:01:13]} Bd6 {[%emt 0:02:20]} 18. Bd2 {[%emt 0:03:02]} Bd7 {[%emt 0:00:04]} 19. Qh5 {[%emt 0:00:45]} Rf6 {[%emt 0:01:27]} 20. d5 {[%emt 0:01:25]} exd5 {[%emt 0:05:10]} 21. Nxf5 {[%emt 0:00:24]} Raf8 {[%emt 0:00:01]} 22. Nxd6 {[%emt 0:00:48]} Qxd6 {[%emt 0:00:08]} 23. Be3 {[%emt 0:00:12]} Bf5 {[%emt 0:00:13]} 24. Be2 {[%emt 0:00:52]} Be4 {[%emt 0:00:25]} 25. f3 {[%emt 0:01:26]} Bf5 {[%emt 0:00:14]} 26. Bd4 {[%emt 0:00:03]} Rg6 {[%emt 0:00:01]} 27. Bf1 {[%emt 0:00:06]} Nc6 {[%emt 0:00:09]} 28. Rad1 {[%emt 0:00:10]} Qa3 {[%emt 0:00:14]} 29. c4 {[%emt 0:00:48]} Qxa2 {[%emt 0:00:10]} 30. cxd5 {[%emt 0:00:11]} Nxd4 {[%emt 0:00:05]} 31. Rxd4 {[%emt 0:00:03]} Rg5 {[%emt 0:00:01]} 32. Qh4 {[%emt 0:00:05]} Bd7 {[%emt 0:00:07]} 33. Qf2 {[%emt 0:00:07]} Qxf2+ {[%emt 0:00:07]} 34. Kxf2 {[%emt 0:00:01]} b5 {[%emt 0:00:06]} 35. d6 {[%emt 0:00:07]} a5 {[%emt 0:00:04]} 36. Re7 {[%emt 0:00:03]} Rf7 {[%emt 0:00:02]} 37. h4 {[%emt 0:00:08]} Rc5 {[%emt 0:00:02]} 38. Bd3 {[%emt 0:00:07]} a4 {[%emt 0:00:03]} 39. Bg6 {[%emt 0:00:07]} Rf6 {[%emt 0:00:10]} 40. Rxd7 {[%emt 0:00:14]} Rxg6 {[%emt 0:00:01]} 41. Rd8+ {[%emt 0:00:01]} Kh7 {[%emt 0:00:02]} 42. d7 {[%emt 0:00:02]} Rc2+ {[%emt 0:00:02]} 43. Ke3 {[%emt 0:00:02]} 1-0

[Event "FIDE Online Olympiad Top Division 2020"]
[Site "Online"]
[Date "2020.08.21"]
[Round "?"]
[White "Agibileg"]
[Black "chessdjw"]
[Result "1-0"]
[ECO "D85"]
[WhiteElo "2433"]
[BlackElo "2297"]
[Annotator "ChessBase"]
[PlyCount "115"]
[EventDate "2020.08.21"]
[SourceTitle "playchess.com"]
[Source "ChessBase"]
[SourceQuality "1"]
[TimeControl "900+5"]

1. d4 {[%emt 0:00:04]} Nf6 {[%emt 0:00:02]} 2. c4 {[%emt 0:00:04]} g6 {[%emt 0:00:01]} 3. Nc3 {[%emt 0:00:08]} d5 {[%emt 0:00:02]} 4. cxd5 {[%emt 0:00:01]} Nxd5 {[%emt 0:00:00]} 5. e4 {[%emt 0:00:01]} Nxc3 {[%emt 0:00:01]} 6. bxc3 {[%emt 0:00:00]} Bg7 {[%emt 0:00:01]} 7. Qa4+ {[%emt 0:00:02]} Qd7 {[%emt 0:00:16]} 8. Bb5 {[%emt 0:01:04]} c6 {[%emt 0:00:03]} 9. Be2 {[%emt 0:00:00]} O-O {[%emt 0:00:06]} 10. Nf3 {[%emt 0:00:01]} c5 {[%emt 0:00:20]} 11. Qxd7 {[%emt 0:00:17]} Nxd7 {[%emt 0:01:10]} 12. Be3 {[%emt 0:00:08]} b6 {[%emt 0:01:18]} 13. O-O-O {[%emt 0:00:08]} Bb7 {[%emt 0:00:19]} 14. Nd2 {[%emt 0:00:06]} cxd4 {[%emt 0:04:00]} 15. cxd4 {[%emt 0:00:03]} Rac8+ {[%emt 0:00:02]} 16. Kb1 {[%emt 0:00:03]} Nf6 {[%emt 0:00:01]} 17. f3 {[%emt 0:00:03]} Rc3 {[%emt 0:00:05]} 18. Bg5 {[%emt 0:00:53]} h6 {[%emt 0:01:43]} 19. Bh4 {[%emt 0:00:03]} Rd8 {[%emt 0:00:20]} 20. Nb3 {[%emt 0:02:28]} Nxe4 {[%emt 0:03:56]} 21. fxe4 {[%emt 0:00:56]} Bxe4+ {[%emt 0:00:00]} 22. Ka1 {[%emt 0:00:26]} Bc2 {[%emt 0:01:13]} 23. Rd2 {[%emt 0:05:10]} Bxb3 {[%emt 0:00:06]} 24. axb3 {[%emt 0:00:23]} Rxd4 {[%emt 0:00:03]} 25. Rxd4 {[%emt 0:00:29]} Bxd4 {[%emt 0:00:00]} 26. Kb1 {[%emt 0:00:29]} Rxb3+ {[%emt 0:00:03]} 27. Kc2 {[%emt 0:00:01]} Rb2+ {[%emt 0:01:16]} 28. Kd3 {[%emt 0:00:02]} Bc5 {[%emt 0:00:02]} 29. Bf3 {[%emt 0:00:17]} a5 {[%emt 0:00:07]} 30. Re1 {[%emt 0:00:09]} g5 {[%emt 0:00:03]} 31. Bg3 {[%emt 0:00:03]} a4 {[%emt 0:00:05]} 32. Be5 {[%emt 0:00:07]} Rb3+ {[%emt 0:00:38]} 33. Kc2 {[%emt 0:00:02]} Rb5 {[%emt 0:00:12]} 34. Rd1 {[%emt 0:00:06]} f6 {[%emt 0:00:03]} 35. Bc3 {[%emt 0:00:09]} Bd6 {[%emt 0:00:01]} 36. Bxf6 {[%emt 0:00:40]} exf6 {[%emt 0:00:01]} 37. Rxd6 {[%emt 0:00:01]} Kg7 {[%emt 0:00:01]} 38. Be4 {[%emt 0:00:41]} f5 {[%emt 0:00:10]} 39. Rd5 {[%emt 0:00:30]} Rxd5 {[%emt 0:00:09]} 40. Bxd5 {[%emt 0:00:00]} Kf6 {[%emt 0:00:02]} 41. Bc6 {[%emt 0:00:00]} Kf7 {[%emt 0:00:03]} 42. Bxa4 {[%emt 0:00:02]} f4 {[%emt 0:00:05]} 43. Kd3 {[%emt 0:00:01]} Kg6 {[%emt 0:00:04]} 44. Ke4 {[%emt 0:00:01]} Kh5 {[%emt 0:00:01]} 45. Be8+ {[%emt 0:00:11]} Kg4 {[%emt 0:00:03]} 46. Bd7+ {[%emt 0:00:03]} Kh4 {[%emt 0:00:05]} 47. Kf3 {[%emt 0:00:03]} Kh5 {[%emt 0:00:07]} 48. Be8+ {[%emt 0:00:01]} Kh4 {[%emt 0:00:01]} 49. h3 {[%emt 0:00:31]} h5 {[%emt 0:00:28]} 50. Bd7 {[%emt 0:00:07]} b5 {[%emt 0:00:07]} 51. Bxb5 {[%emt 0:00:02]} g4+ {[%emt 0:00:01]} 52. Kxf4 {[%emt 0:00:05]} g3 {[%emt 0:00:07]} 53. Kf3 {[%emt 0:00:01]} Kg5 {[%emt 0:00:02]} 54. Kxg3 {[%emt 0:00:00]} h4+ {[%emt 0:00:02]} 55. Kf3 {[%emt 0:00:02]} Kf5 {[%emt 0:00:00]} 56. Bd7+ {[%emt 0:00:03]} Kg5 {[%emt 0:00:01]} 57. Bc8 {[%emt 0:00:03]} Kh5 {[%emt 0:00:01]} 58. Kf4 {[%emt 0:00:01]} 1-0

[Event "FIDE Online Olympiad Top Division 2020"]
[Site "Online"]
[Date "2020.08.22"]
[Round "?"]
[White "Arabidze, Meri"]
[Black "Melamed, Tatjana"]
[Result "1-0"]
[ECO "A60"]
[WhiteElo "2400"]
[BlackElo "2492"]
[Annotator "ChessBase"]
[PlyCount "93"]
[EventDate "2020.08.21"]
[SourceTitle "playchess.com"]
[Source "ChessBase"]
[SourceQuality "1"]
[TimeControl "900+5"]

1. d4 {[%emt 0:00:02]} Nf6 {[%emt 0:00:03]} 2. c4 {[%emt 0:00:02]} g6 {[%emt 0:00:02]} 3. g3 {[%emt 0:00:08]} Bg7 {[%emt 0:00:01]} 4. Bg2 {[%emt 0:00:02]} O-O {[%emt 0:00:01]} 5. Nc3 {[%emt 0:00:02]} d6 {[%emt 0:00:02]} 6. e4 {[%emt 0:00:14]} c5 {[%emt 0:00:36]} 7. d5 {[%emt 0:00:44]} a6 {[%emt 0:00:23]} 8. a4 {[%emt 0:00:18]} e6 {[%emt 0:00:34]} 9. Nge2 {[%emt 0:00:08]} exd5 {[%emt 0:00:04]} 10. cxd5 {[%emt 0:00:06]} Nbd7 {[%emt 0:01:38]} 11. O-O {[%emt 0:00:03]} Re8 {[%emt 0:00:02]} 12. h3 {[%emt 0:00:29]} Rb8 {[%emt 0:00:02]} 13. Rb1 {[%emt 0:00:16]} b5 {[%emt 0:00:18]} 14. axb5 {[%emt 0:00:03]} axb5 {[%emt 0:00:01]} 15. b4 {[%emt 0:00:09]} cxb4 {[%emt 0:01:00]} 16. Rxb4 {[%emt 0:00:06]} Nc5 {[%emt 0:00:01]} 17. Bf4 {[%emt 0:01:44]} Nh5 {[%emt 0:00:32]} 18. Be3 {[%emt 0:00:05]} Qa5 {[%emt 0:01:10]} 19. Qb1 {[%emt 0:00:10]} Bd7 {[%emt 0:00:11]} 20. g4 {[%emt 0:06:28]} Nf6 {[%emt 0:00:19]} 21. Bf4 {[%emt 0:00:40]} Rb6 {[%emt 0:01:47]} 22. Rb2 {[%emt 0:01:20]} h5 {[%emt 0:01:52]} 23. Ra2 {[%emt 0:00:52]} Na4 {[%emt 0:00:07]} 24. Bd2 {[%emt 0:00:06]} Reb8 {[%emt 0:01:09]} 25. g5 {[%emt 0:00:37]} Nh7 {[%emt 0:00:23]} 26. Qc2 {[%emt 0:01:09]} Qa8 {[%emt 0:00:16]} 27. Be3 {[%emt 0:00:29]} Ra6 {[%emt 0:00:08]} 28. Nxa4 {[%emt 0:00:13]} bxa4 {[%emt 0:00:38]} 29. h4 {[%emt 0:00:16]} Rc8 {[%emt 0:00:26]} 30. Qd3 {[%emt 0:00:07]} Ra5 {[%emt 0:00:29]} 31. Bd4 {[%emt 0:00:02]} Bb5 {[%emt 0:00:06]} 32. Qe3 {[%emt 0:00:07]} Bxe2 {[%emt 0:00:10]} 33. Rxe2 {[%emt 0:00:00]} Bxd4 {[%emt 0:00:06]} 34. Qxd4 {[%emt 0:00:01]} a3 {[%emt 0:00:13]} 35. Ra2 {[%emt 0:00:02]} Qa6 {[%emt 0:00:06]} 36. Rfa1 {[%emt 0:00:03]} Rc4 {[%emt 0:00:16]} 37. Qe3 {[%emt 0:00:03]} Rca4 {[%emt 0:00:15]} 38. Qg3 {[%emt 0:00:07]} Nf8 {[%emt 0:00:24]} 39. e5 {[%emt 0:00:24]} dxe5 {[%emt 0:00:01]} 40. Qxe5 {[%emt 0:00:01]} Qc4 {[%emt 0:00:02]} 41. Qg3 {[%emt 0:00:06]} Nd7 {[%emt 0:00:34]} 42. d6 {[%emt 0:00:07]} Ne5 {[%emt 0:00:09]} 43. Qe3 {[%emt 0:00:11]} Ng4 {[%emt 0:00:17]} 44. Qe8+ {[%emt 0:00:03]} Kg7 {[%emt 0:00:02]} 45. d7 {[%emt 0:00:01]} Qf4 {[%emt 0:00:10]} 46. d8=Q {[%emt 0:00:04]} Qxf2+ {[%emt 0:00:03]} 47. Rxf2 {[%emt 0:00:02]} 1-0

[Event "FIDE Online Olympiad Top Division 2020"]
[Site "Online"]
[Date "2020.08.22"]
[Round "?"]
[White "Kacharava, Nikolozi"]
[Black "Vogel, Roven"]
[Result "0-1"]
[ECO "C54"]
[WhiteElo "2386"]
[BlackElo "2113"]
[Annotator "ChessBase"]
[PlyCount "92"]
[EventDate "2020.08.21"]
[SourceTitle "playchess.com"]
[Source "ChessBase"]
[SourceQuality "1"]
[TimeControl "900+5"]

1. e4 {[%emt 0:00:01]} e5 {[%emt 0:00:03]} 2. Nf3 {[%emt 0:00:01]} Nc6 {[%emt 0:00:02]} 3. Bc4 {[%emt 0:00:01]} Bc5 {[%emt 0:00:02]} 4. c3 {[%emt 0:00:01]} Nf6 {[%emt 0:00:02]} 5. d3 {[%emt 0:00:00]} d6 {[%emt 0:00:04]} 6. O-O {[%emt 0:00:02]} h6 {[%emt 0:00:01]} 7. Nbd2 {[%emt 0:00:05]} O-O {[%emt 0:00:04]} 8. h3 {[%emt 0:00:02]} a5 {[%emt 0:00:03]} 9. Re1 {[%emt 0:00:06]} a4 {[%emt 0:00:13]} 10. Bb5 {[%emt 0:00:44]} a3 {[%emt 0:00:04]} 11. b4 {[%emt 0:00:12]} Ba7 {[%emt 0:00:14]} 12. Qb3 {[%emt 0:00:36]} Ne7 {[%emt 0:00:07]} 13. d4 {[%emt 0:00:27]} c6 {[%emt 0:01:21]} 14. Bf1 {[%emt 0:00:50]} Be6 {[%emt 0:00:15]} 15. Bc4 {[%emt 0:00:53]} d5 {[%emt 0:00:07]} 16. exd5 {[%emt 0:00:06]} cxd5 {[%emt 0:00:00]} 17. Bf1 {[%emt 0:00:17]} e4 {[%emt 0:00:04]} 18. Ne5 {[%emt 0:00:44]} Nd7 {[%emt 0:01:45]} 19. Nxd7 {[%emt 0:00:07]} Qxd7 {[%emt 0:00:24]} 20. Bxa3 {[%emt 0:01:17]} b5 {[%emt 0:00:03]} 21. Bb2 {[%emt 0:00:50]} Bb8 {[%emt 0:00:03]} 22. Qc2 {[%emt 0:00:54]} Qc7 {[%emt 0:03:00]} 23. g3 {[%emt 0:00:38]} Bd7 {[%emt 0:01:22]} 24. Nxe4 {[%emt 0:03:17]} Bf5 {[%emt 0:00:14]} 25. Nf6+ {[%emt 0:01:05]} gxf6 {[%emt 0:00:03]} 26. Qe2 {[%emt 0:00:06]} Be6 {[%emt 0:01:08]} 27. Qxb5 {[%emt 0:00:08]} h5 {[%emt 0:01:11]} 28. h4 {[%emt 0:01:08]} f5 {[%emt 0:00:56]} 29. f4 {[%emt 0:02:02]} Kh7 {[%emt 0:00:21]} 30. Bg2 {[%emt 0:00:14]} Rg8 {[%emt 0:00:08]} 31. Re3 {[%emt 0:00:03]} Nc8 {[%emt 0:00:36]} 32. Qe2 {[%emt 0:00:11]} Rg4 {[%emt 0:02:23]} 33. Re1 {[%emt 0:00:17]} Rxa2 {[%emt 0:00:10]} 34. Rxe6 {[%emt 0:00:07]} fxe6 {[%emt 0:00:02]} 35. Qxe6 {[%emt 0:00:02]} Nd6 {[%emt 0:00:02]} 36. Qf6 {[%emt 0:00:12]} Rg7 {[%emt 0:00:15]} 37. Re2 {[%emt 0:00:08]} Rxb2 {[%emt 0:00:09]} 38. Rxb2 {[%emt 0:00:03]} Qxc3 {[%emt 0:00:02]} 39. Re2 {[%emt 0:00:10]} Qxg3 {[%emt 0:00:02]} 40. Qe6 {[%emt 0:00:07]} Qxf4 {[%emt 0:00:14]} 41. Rf2 {[%emt 0:00:03]} Qxd4 {[%emt 0:00:12]} 42. Qe2 {[%emt 0:00:01]} Ba7 {[%emt 0:00:08]} 43. Qxh5+ {[%emt 0:00:12]} Kg8 {[%emt 0:00:01]} 44. Qe2 {[%emt 0:00:05]} Ne4 {[%emt 0:00:08]} 45. Qa2 {[%emt 0:00:04]} Qxf2+ {[%emt 0:00:05]} 46. Qxf2 {[%emt 0:00:01]} Bxf2+ {[%emt 0:00:01]} 0-1